lending/lending_fUSD_20250621
["ID","MTS","AMOUNT","RATE_DAILY","PERIOD"]
[366824149,1750476653929,-1165.36,0.00031331,2]
[366824150,1750476653940,-1770.35,0.00031331,2]
[366824151,1750476653951,-163.55,0.00031331,2]
[366824152,1750476653963,-355.03,0.00031331,2]
[366824153,1750476653975,-163.58,0.00031331,2]
[366824154,1750476653986,-174.61919141,0.00031359,2]
[366824155,1750476653997,-239.84119403,0.00031359,2]
[366824156,1750476654008,-237.47737579,0.00031392,2]
[366824157,1750476654020,-823.0,0.00031432,2]
[366824158,1750476654031,-18279.05862835,0.0003144,2]
[366824159,1750476654041,-168.0,0.00031444,2]
[366824160,1750476654051,-490.0,0.00031506,4]
[366824161,1750476654061,-490.0,0.00031506,4]
[366824162,1750476654072,-550.13,0.00031506,4]
[366824163,1750476654083,-469.5838296,0.00031506,4]
[366824164,1750476654094,-1265.22,0.00031506,2]
[366824165,1750476654105,-490.0,0.00031506,4]
[366824166,1750476654115,-518.00550769,0.00031506,4]
[366824167,1750476654126,-1844.83,0.00031506,4]
[366824168,1750476654136,-490.0,0.00031506,4]
[366824169,1750476654147,-474.57011642,0.00031506,4]
[366824170,1750476654157,-490.0,0.00031506,4]
[366824171,1750476654168,-490.0,0.00031506,4]
[366824172,1750476654178,-566.25,0.00031506,4]
[366824173,1750476654189,-490.0,0.00031506,4]
[366824174,1750476654199,-490.0,0.00031506,4]
[366824175,1750476654210,-490.0,0.00031506,4]
[366824176,1750476654220,-490.0,0.00031506,4]
[366824177,1750476654230,-490.0,0.00031506,4]
[366824178,1750476654241,-490.0,0.00031506,4]
[366824179,1750476654252,-490.0,0.00031506,4]
[366824180,1750476654262,-490.0,0.00031506,4]
[366824181,1750476654273,-815.36,0.00031506,4]
[366824182,1750476654284,-490.0,0.00031506,4]
[366824183,1750476654295,-490.0,0.00031506,4]
[366824184,1750476654306,-490.0,0.00031506,4]
[366824185,1750476654316,-490.0,0.00031506,4]
[366824186,1750476654327,-1105.26,0.00031506,4]
[366824187,1750476654338,-2283.27,0.00031506,4]
[366824188,1750476654348,-490.0,0.00031506,4]
[366824189,1750476654358,-556.24152076,0.00031506,4]
[366824190,1750476654368,-490.0,0.00031506,4]
[366824191,1750476654379,-666.7,0.00031506,4]
[366824192,1750476654389,-490.0,0.00031506,4]
[366824193,1750476654400,-490.0,0.00031506,4]
[366824194,1750476654411,-1741.95,0.00031506,4]
[366824195,1750476654421,-490.0,0.00031506,4]
[366824196,1750476654431,-490.0,0.00031506,4]
[366824197,1750476654443,-661.18,0.00031506,4]
[366824198,1750476654453,-490.0,0.00031506,4]
[366824199,1750476654463,-507.44,0.00031506,4]
[366824200,1750476654475,-812.55,0.00031506,4]
[366824201,1750476654485,-490.0,0.00031506,4]
[366824202,1750476654495,-490.0,0.00031506,4]
[366824203,1750476654506,-588.99,0.00031506,4]
[366824204,1750476654516,-490.0,0.00031506,4]
[366824205,1750476654527,-805.13,0.00031506,4]
[366824206,1750476654537,-1263.76,0.00031506,4]
[366824207,1750476654548,-490.0,0.00031506,4]
[366824208,1750476654558,-655.68,0.00031506,2]
[366824209,1750476654569,-859.54,0.00031506,4]
[366824210,1750476654579,-853.71,0.00031506,4]
[366824211,1750476654589,-490.0,0.00031506,4]
[366824212,1750476654599,-490.0,0.00031506,4]
[366824213,1750476654610,-490.0,0.00031506,4]
[366824214,1750476654620,-490.0,0.00031506,4]
[366824215,1750476654630,-700.83,0.00031506,4]
[366824216,1750476654641,-4653.85,0.00031507,2]
[366824217,1750476654651,-168.0,0.00031513,2]
[366824218,1750476654661,-14068.67,0.000316,2]
[366824219,1750476654672,-605.58553038,0.00031659,25]
[366824220,1750476654682,-29320.13,0.000317,2]
[366824221,1750476654693,-117280.52,0.000317,2]
[366824222,1750476654703,-54004.49,0.000317,7]
[366824223,1750476654713,-271.4,0.00031702,2]
[366824224,1750476654724,-150.0,0.00031723,2]
[366824225,1750476654734,-7084.20695883,0.00031736,2]
[366824226,1750476654744,-303.58437736,0.0003178,4]
[366824227,1750476654754,-490.0,0.0003178,4]
[366824228,1750476654764,-550.13,0.0003178,4]
[366824229,1750476654774,-1265.22,0.0003178,2]
[366824230,1750476654784,-151.04521802,0.0003178,4]
[366824231,1750476654794,-1844.83,0.0003178,4]
[366824232,1750476654804,-490.0,0.0003178,4]
[366824233,1750476654815,-490.0,0.0003178,4]
[366824234,1750476654825,-490.0,0.0003178,4]
[366824235,1750476654834,-566.25,0.0003178,4]
[366824236,1750476654844,-490.0,0.0003178,4]
[366824237,1750476654854,-490.0,0.0003178,4]
[366824238,1750476654865,-490.0,0.0003178,4]
[366824239,1750476654876,-490.0,0.0003178,4]
[366824240,1750476654886,-490.0,0.0003178,4]
[366824241,1750476654896,-490.0,0.0003178,4]
[366824242,1750476654907,-490.0,0.0003178,4]
[366824243,1750476654918,-490.0,0.0003178,4]
[366824244,1750476654929,-815.36,0.0003178,4]
[366824245,1750476654940,-490.0,0.0003178,4]
[366824246,1750476654950,-490.0,0.0003178,4]
[366824247,1750476654960,-490.0,0.0003178,4]
[366824248,1750476654971,-490.0,0.0003178,4]
[366824249,1750476654981,-1105.26,0.0003178,4]
[366824250,1750476654992,-2283.27,0.0003178,4]
[366824251,1750476655003,-561.84356818,0.0003178,4]
[366824252,1750476655015,-490.0,0.0003178,4]
[366824253,1750476655026,-666.7,0.0003178,4]
[366824254,1750476655037,-490.0,0.0003178,4]
[366824255,1750476655050,-490.0,0.0003178,4]
[366824256,1750476655062,-1741.95,0.0003178,4]
[366824257,1750476655073,-490.0,0.0003178,4]
[366824258,1750476655289,-490.0,0.0003178,4]
[366824259,1750476655301,-661.18,0.0003178,4]
[366824260,1750476655313,-490.0,0.0003178,4]
[366824261,1750476655323,-507.44,0.0003178,4]
[366824262,1750476655333,-812.55,0.0003178,4]
[366824263,1750476655344,-490.0,0.0003178,4]
[366824264,1750476655355,-490.0,0.0003178,4]
[366824265,1750476655365,-588.99,0.0003178,4]
[366824266,1750476655376,-490.0,0.0003178,4]
[366824267,1750476655386,-805.13,0.0003178,4]
[366824268,1750476655401,-1263.76,0.0003178,4]
[366824269,1750476655412,-490.0,0.0003178,4]
[366824270,1750476655421,-655.68,0.0003178,2]
[366824271,1750476655432,-859.54,0.0003178,4]
[366824272,1750476655443,-853.71,0.0003178,4]
[366824273,1750476655454,-490.0,0.0003178,4]
[366824274,1750476655463,-490.0,0.0003178,4]
[366824275,1750476655475,-490.0,0.0003178,4]
[366824276,1750476655485,-490.0,0.0003178,4]
[366824277,1750476655495,-700.83,0.0003178,4]
[366824278,1750476655505,-3292.0,0.00031862,3]
[366824279,1750476655515,-246.27449696,0.000319,2]
[366824280,1750476655525,-14012.21027077,0.00031954,2]
[366824281,1750476655534,-621.8166394,0.0003196,2]
[366824282,1750476655544,-4000.0,0.00032,4]
[366824283,1750476655554,-205.85848751,0.00032,120]
[366824284,1750476655563,-1540.11976372,0.00032,2]
[366824285,1750476655573,-35000.0,0.00032,2]
[366824286,1750476655584,-166.0,0.00032,2]
[366824287,1750476655593,-490.0,0.00032054,4]
[366824288,1750476655604,-550.13,0.00032054,4]
[366824289,1750476655614,-1265.22,0.00032054,2]
[366824290,1750476655624,-1844.83,0.00032054,4]
[366824291,1750476655634,-490.0,0.00032054,4]
[366824292,1750476655644,-490.0,0.00032054,4]
[366824293,1750476655654,-490.0,0.00032054,4]
[366824294,1750476655664,-566.25,0.00032054,4]
[366824295,1750476655674,-490.0,0.00032054,4]
[366824296,1750476655684,-490.0,0.00032054,4]
[366824297,1750476655694,-490.0,0.00032054,4]
[366824298,1750476655704,-490.0,0.00032054,4]
[366824299,1750476655715,-490.0,0.00032054,4]
[366824300,1750476655724,-490.0,0.00032054,4]
[366824301,1750476655734,-490.0,0.00032054,4]
[366824302,1750476655745,-490.0,0.00032054,4]
[366824303,1750476655755,-815.36,0.00032054,4]
[366824304,1750476655764,-490.0,0.00032054,4]
[366824305,1750476655775,-490.0,0.00032054,4]
[366824306,1750476655785,-490.0,0.00032054,4]
[366824307,1750476655796,-490.0,0.00032054,4]
[366824308,1750476655806,-1105.26,0.00032054,4]
[366824309,1750476655816,-2283.27,0.00032054,4]
[366824310,1750476655826,-490.0,0.00032054,4]
[366824311,1750476655836,-666.7,0.00032054,4]
[366824312,1750476655846,-490.0,0.00032054,4]
[366824313,1750476655857,-490.0,0.00032054,4]
[366824314,1750476655868,-1741.95,0.00032054,4]
[366824315,1750476655878,-490.0,0.00032054,4]
[366824316,1750476655889,-571.71641416,0.00032054,4]
[366824317,1750476655900,-661.18,0.00032054,4]
[366824318,1750476655911,-490.0,0.00032054,4]
[366824319,1750476655923,-507.44,0.00032054,4]
[366824320,1750476655933,-812.55,0.00032054,4]
[366824321,1750476655944,-490.0,0.00032054,4]
[366824322,1750476655956,-490.0,0.00032054,4]
[366824323,1750476655966,-588.99,0.00032054,4]
[366824324,1750476655978,-490.0,0.00032054,4]
[366824325,1750476655989,-805.13,0.00032054,4]
[366824326,1750476655999,-1263.76,0.00032054,4]
[366824327,1750476656009,-490.0,0.00032054,4]
[366824328,1750476656019,-655.68,0.00032054,2]
[366824329,1750476656030,-859.54,0.00032054,4]
[366824330,1750476656040,-853.71,0.00032054,4]
[366824331,1750476656050,-490.0,0.00032054,4]
[366824332,1750476656059,-490.0,0.00032054,4]
[366824333,1750476656069,-490.0,0.00032054,4]
[366824334,1750476656079,-490.0,0.00032054,4]
[366824335,1750476656089,-700.83,0.00032054,4]
[366824336,1750476656099,-7000.0,0.0003212,2]
[366824337,1750476656109,-605.58553038,0.00032141,26]
[366824338,1750476656119,-163.55,0.00032152,2]
[366824339,1750476656129,-163.55,0.00032152,2]
[366824340,1750476656139,-356.88,0.00032152,2]
[366824341,1750476656149,-354.96,0.00032152,2]
[366824342,1750476656158,-163.55,0.00032152,2]
[366824343,1750476656168,-360.78,0.00032152,2]
[366824344,1750476656177,-354.96,0.00032152,2]
[366824345,1750476656187,-354.36,0.00032152,2]
[366824346,1750476656197,-7084.20695883,0.00032256,2]
[366824347,1750476656207,-18279.05862835,0.0003226,2]
[366824348,1750476656217,-490.0,0.00032328,4]
[366824349,1750476656226,-550.13,0.00032328,4]
[366824350,1750476656237,-1265.22,0.00032328,2]
[366824351,1750476656246,-1844.83,0.00032328,4]
[366824352,1750476656256,-490.0,0.00032328,4]
[366824353,1750476656265,-490.0,0.00032328,4]
[366824354,1750476656274,-490.0,0.00032328,4]
[366824355,1750476656284,-566.25,0.00032328,4]
[366824356,1750476656294,-490.0,0.00032328,4]
[366824357,1750476656304,-490.0,0.00032328,4]
[366824358,1750476656313,-490.0,0.00032328,4]
[366824359,1750476656322,-490.0,0.00032328,4]
[366824360,1750476656332,-490.0,0.00032328,4]
[366824361,1750476656341,-490.0,0.00032328,4]
[366824362,1750476656351,-490.0,0.00032328,4]
[366824363,1750476656361,-490.0,0.00032328,4]
[366824364,1750476656370,-815.36,0.00032328,4]
[366824365,1750476656380,-490.0,0.00032328,4]
[366824366,1750476656390,-490.0,0.00032328,4]
[366824367,1750476656402,-490.0,0.00032328,4]
[366824368,1750476656412,-490.0,0.00032328,4]
[366824369,1750476656421,-1105.26,0.00032328,4]
[366824370,1750476656431,-2283.27,0.00032328,4]
[366824371,1750476656441,-490.0,0.00032328,4]
[366824372,1750476656450,-666.7,0.00032328,4]
[366824373,1750476656459,-490.0,0.00032328,4]
[366824374,1750476656468,-530.46874699,0.00032328,4]
[366824375,1750476656478,-1741.95,0.00032328,4]
[366824376,1750476656489,-490.0,0.00032328,4]
[366824377,1750476656499,-661.18,0.00032328,4]
[366824378,1750476656508,-490.0,0.00032328,4]
[366824379,1750476656518,-507.44,0.00032328,4]
[366824380,1750476656527,-812.55,0.00032328,4]
[366824381,1750476656537,-451.08252402,0.00032328,4]
[366824382,1750476656547,-490.0,0.00032328,4]
[366824383,1750476656557,-588.99,0.00032328,4]
[366824384,1750476656567,-490.0,0.00032328,4]
[366824385,1750476656576,-805.13,0.00032328,4]
[366824386,1750476656586,-1263.76,0.00032328,4]
[366824387,1750476656595,-490.0,0.00032328,4]
[366824388,1750476656606,-655.68,0.00032328,2]
[366824389,1750476656616,-859.54,0.00032328,4]
[366824390,1750476656626,-853.71,0.00032328,4]
[366824391,1750476656635,-490.0,0.00032328,4]
[366824392,1750476656645,-490.0,0.00032328,4]
[366824393,1750476656655,-490.0,0.00032328,4]
[366824394,1750476656665,-490.0,0.00032328,4]
[366824395,1750476656674,-700.83,0.00032328,4]
[366824396,1750476656684,-152.34957416,0.00032348,11]
[366824397,1750476656694,-54004.49,0.000324,7]
[366824398,1750476656704,-150.0,0.00032444,2]
[366824399,1750476656714,-366.93894145,0.00032455,2]
[366824400,1750476656724,-150.0,0.00032464,3]
[366824401,1750476656733,-107507.18885351,0.00032465,2]
[366824402,1750476657009,-644.18024089,0.00028781,2]
[366824403,1750476657019,-4813.409,0.00029621,2]
[366824404,1750476657029,-490.0,0.00030136,4]
[366824405,1750476657040,-490.0,0.00030136,4]
[366824406,1750476657049,-490.0,0.0003041,4]
[366824407,1750476657058,-207.02,0.0003041,4]
[366824408,1750476657067,-490.0,0.0003041,4]
[366824409,1750476657078,-306.59770137,0.00030684,4]
[366824410,1750476657088,-490.0,0.00030684,4]
[366824411,1750476657098,-154.42,0.00030684,4]
[366824412,1750476657108,-490.0,0.00030958,4]
[366824413,1750476657118,-606.99244989,0.00031232,4]
[366824414,1750476657127,-500.0,0.0003133,2]
[366824415,1750476657137,-500.0,0.0003133,2]
[366824416,1750476657146,-500.0,0.0003133,2]
[366824417,1750476657156,-500.0,0.0003133,2]
[366824418,1750476657165,-74708.23256059,0.00032465,2]
[366824419,1750476657175,-207.0,0.00032481,15]
[366824420,1750476657184,-1744.4,0.000325,2]
[366824421,1750476657194,-9583.26138717,0.00032502,2]
[366824422,1750476657204,-5261.34270429,0.00032577,2]
[366824423,1750476657213,-5261.34270427,0.00032577,2]
[366824424,1750476657223,-5261.34270427,0.00032577,2]
[366824425,1750476657232,-150.0,0.00032579,3]
[366824426,1750476657241,-602424.38759404,0.0003258,120]
[366824427,1750476657254,-816.7989524,0.0003258,120]
[366824428,1750476657515,-1000.0,0.0002671,10]
[366824429,1750476657526,-508.34478998,0.00030136,4]
[366824430,1750476657537,-490.0,0.00030136,4]
[366824431,1750476657547,-250.0,0.00030136,4]
[366824432,1750476657557,-490.0,0.0003041,4]
[366824433,1750476657568,-250.0,0.0003041,4]
[366824434,1750476657633,-390.51253257,0.00030684,4]
[366824435,1750476657645,-172.63269273,0.00030684,4]
[366824436,1750476657655,-178.62559265,0.00030684,4]
[366824437,1750476657665,-500.0,0.0003133,2]
[366824438,1750476657675,-500.0,0.0003133,2]
[366824439,1750476657685,-500.0,0.0003133,2]
[366824440,1750476657695,-500.0,0.0003133,2]
[366824441,1750476657705,-500.0,0.0003133,2]
[366824442,1750476657715,-500.0,0.0003133,2]
[366824443,1750476657727,-500.0,0.0003133,2]
[366824444,1750476657738,-159.08855488,0.00031344,2]
[366824445,1750476657747,-6899.21438437,0.0003258,120]
[366824446,1750476657759,-3138.01439002,0.0003258,120]
[366824447,1750476657785,-946.0,0.00026621,2]
[366824448,1750476657795,-1729.93732596,0.0003258,120]
[366824449,1750476657808,-2109.6157733,0.0003258,120]
[366824450,1750476657827,-340.34707003,0.00028659,2]
[366824451,1750476657838,-253881.05202473,0.0003258,120]
[366824452,1750476657850,-824.20492446,0.0003258,120]
[366824453,1750476657862,-5328.49374862,0.0003258,120]
[366824454,1750476657881,-176.2513546,0.0002671,10]
[366824455,1750476657892,-500.0,0.0003133,2]
[366824456,1750476657903,-182.4335621,0.0003258,120]
[366824457,1750476657915,-3302.97586189,0.0003258,120]
[366824458,1750476658381,-150.0,0.00028669,2]
[366824459,1750476658391,-301.23409272,0.00029005,2]
[366824460,1750476658406,-342.94614817,0.00029005,2]
[366824461,1750476658418,-946.0,0.00029621,2]
[366824462,1750476658427,-472.23527106,0.00030136,4]
[366824463,1750476658437,-490.0,0.00030136,4]
[366824464,1750476658447,-490.0,0.00030136,4]
[366824465,1750476658459,-490.0,0.00030136,4]
[366824466,1750476658469,-490.0,0.00030136,4]
[366824467,1750476658480,-490.0,0.0003041,4]
[366824468,1750476658491,-210.0,0.0003041,4]
[366824469,1750476658502,-490.0,0.00030684,4]
[366824470,1750476658511,-490.0,0.00030958,4]
[366824471,1750476658521,-564.94058252,0.00031232,4]
[366824472,1750476658531,-500.0,0.0003133,2]
[366824473,1750476658542,-500.0,0.0003133,2]
[366824474,1750476658555,-500.0,0.0003133,2]
[366824475,1750476658565,-500.0,0.0003133,2]
[366824476,1750476658576,-500.0,0.0003133,2]
[366824477,1750476658586,-500.0,0.0003133,2]
[366824478,1750476658597,-500.0,0.0003133,2]
[366824479,1750476658607,-500.0,0.0003133,2]
[366824480,1750476658616,-500.0,0.0003133,2]
[366824481,1750476658625,-3767.13129547,0.0003258,120]
[366824482,1750476658637,-2083.78472364,0.0003258,120]
[366824483,1750476658649,-1778.2303751,0.0003258,120]
[366824484,1750476658660,-1600.0,0.0003258,120]
[366824485,1750476658673,-3772.70719577,0.0003258,120]
[366824486,1750476658689,-490.0,0.0003041,4]
[366824487,1750476658699,-903.09588927,0.0003258,120]
[366824488,1750476658713,-500.0,0.0003258,120]
[366824489,1750476658726,-4832.2786886,0.0003258,120]
[366824490,1750476658746,-64816.38093793,0.0003258,120]
[366824491,1750476886410,3138.0,0.000247,120]
[366824492,1750477309635,250.0,0.00015,2]
[366824493,1750477310698,300.0,0.00017,2]
[366824494,1750477311766,350.0,0.00019,2]
[366824496,1750477396284,177.99,0.00013699,2]
[366824497,1750477397391,-152.0,0.00020187,2]
[366824498,1750477401349,-25.99,0.00020187,2]
[366824499,1750477452830,-166.80128817,0.00021014,2]
[366824500,1750477460783,-39.19871183,0.00021014,2]
[366824506,1750477812009,40000.00002895,0.0002,2]
[366824521,1750477831823,-206.0,0.00022451,2]
[366824522,1750477831835,-206.0,0.00024954,5]
[366824523,1750477831847,-115.12435326,0.00025418,120]
[366824524,1750477831875,-169.52564674,0.00025418,120]
[366824525,1750477831885,-86.87737326,0.00025793,2]
[366824526,1750477831898,-87.77262674,0.00025793,2]
[366824527,1750477831908,-150.3,0.00025828,120]
[366824528,1750477831918,-120.45737326,0.00025858,2]
[366824529,1750477831981,-545.54262674,0.00025858,2]
[366824530,1750477831992,-250.0,0.00026032,2]
[366824531,1750477832001,-256.0,0.00026052,2]
[366824532,1750477832011,-41.10974596,0.00026111,2]
[366824533,1750477832036,-227.79025404,0.00026111,2]
[366824534,1750477832047,-1000.0,0.00026236,2]
[366824535,1750477832057,-300.0,0.00026463,2]
[366824536,1750477832067,-708.59863396,0.00026463,2]
[366824537,1750477832090,-491.40136604,0.00026463,2]
[366824538,1750477832100,-151.0,0.00026464,2]
[366824539,1750477832110,-153.2196213,0.00026464,2]
[366824540,1750477832126,-146.7803787,0.00026464,2]
[366824541,1750477832136,-269.56616424,0.00026464,2]
[366824542,1750477832198,-30.43383576,0.00026464,2]
[366824544,1750477832208,-300.0,0.00026464,2]
[366824546,1750477832218,-300.0,0.00026464,2]
[366824548,1750477832227,-300.0,0.00026464,2]
[366824550,1750477832249,-300.0,0.00026464,2]
[366824552,1750477832259,-300.0,0.00026464,2]
[366824554,1750477832269,-300.0,0.00026464,2]
[366824556,1750477832279,-300.0,0.00026464,2]
[366824558,1750477832289,-573.64526755,0.00026464,2]
[366824560,1750477832299,-300.0,0.00026464,2]
[366824562,1750477832309,-151.0,0.00026464,2]
[366824564,1750477832319,-300.0,0.00026464,2]
[366824567,1750477832330,-151.0,0.00026464,2]
[366824569,1750477832340,-300.0,0.00026464,2]
[366824571,1750477832350,-500.0,0.00026464,2]
[366824572,1750477832360,-227.36880269,0.00026464,2]
[366824573,1750477832371,-300.0,0.00026464,2]
[366824574,1750477832380,-42.9803106,0.00026464,2]
[366824575,1750477832394,-457.0196894,0.00026464,2]
[366824576,1750477832404,-300.0,0.00026464,2]
[366824577,1750477832415,-628.72136446,0.00026464,2]
[366824578,1750477832425,-300.0,0.00026464,2]
[366824579,1750477832435,-207.4,0.00026464,2]
[366824580,1750477832446,-5654.76274921,0.0002648,2]
[366824581,1750477832459,-968.48554386,0.0002648,2]
[366824583,1750477832473,-591.60445614,0.0002648,2]
[366824586,1750477837814,-395.375,0.0002648,2]
[366824587,1750477837827,-413.54924071,0.0002648,2]
[366824589,1750477838457,-767.57597741,0.0002648,2]
[366824590,1750477838469,-300.0,0.0002648,2]
[366824591,1750477838660,-908.63703267,0.0002648,2]
[366824592,1750477838671,-999.99,0.0002648,2]
[366824593,1750477838681,-3282.37296733,0.0002648,2]
[366824599,1750477839942,-3113.55,0.0002648,2]
[366824600,1750477840046,-3604.06703267,0.0002648,2]
[366824601,1750477840058,-150.99,0.0002648,2]
[366824602,1750477840068,-584.259808,0.00026481,4]
[366824603,1750477840078,-247.76659335,0.00026481,4]
[366824604,1750477840205,-893.45892965,0.00026481,4]
[366824605,1750477840216,-170.434084,0.00026481,4]
[366824606,1750477840226,-250.25,0.00026481,2]
[366824607,1750477840242,-304.9,0.00026481,2]
[366824608,1750477840253,-224.0,0.00026483,2]
[366824609,1750477840264,-584.259808,0.00026499,4]
[366824610,1750477840274,-1141.225523,0.00026499,4]
[366824611,1750477840284,-1062.06,0.000265,2]
[366824612,1750477840295,-224.0,0.00026587,2]
[366824613,1750477840305,-1691.471643,0.00026587,60]
[366824614,1750477840315,-177.99,0.00026676,2]
[366824615,1750477840325,-584.259808,0.00026694,4]
[366824616,1750477840336,-1141.225523,0.00026694,4]
[366824617,1750477840348,-584.259808,0.00026704,4]
[366824618,1750477840358,-1141.225523,0.00026704,4]
[366824619,1750477840368,-170.434084,0.00026704,4]
[366824620,1750477840378,-584.259808,0.00026708,4]
[366824621,1750477840389,-1141.225523,0.00026708,4]
[366824622,1750477840399,-1000.0,0.0002671,10]
[366824623,1750477840409,-1000.0,0.0002671,10]
[366824624,1750477840421,-1000.0,0.0002671,10]
[366824625,1750477840431,-1000.0,0.0002671,10]
[366824626,1750477840442,-1000.0,0.0002671,10]
[366824627,1750477840452,-1000.0,0.0002671,10]
[366824628,1750477840462,-1000.0,0.0002671,10]
[366824629,1750477840472,-1000.0,0.0002671,10]
[366824630,1750477840483,-1000.0,0.0002671,10]
[366824631,1750477840493,-1017.75202797,0.0002671,10]
[366824632,1750477840503,-584.259808,0.00026711,4]
[366824633,1750477840512,-1141.225523,0.00026711,4]
[366824634,1750477840524,-170.434084,0.00026711,4]
[366824635,1750477840535,-584.259808,0.00026714,4]
[366824636,1750477840545,-1141.225523,0.00026714,4]
[366824637,1750477840555,-584.259808,0.00026715,4]
[366824638,1750477840564,-1141.225523,0.00026715,4]
[366824639,1750477840574,-711491.61888282,0.000269,2]
[366824661,1750477843444,-2967.38027858,0.000269,2]
[366824662,1750477843462,-74427.80730581,0.000269,2]
[366824663,1750477843474,-371.260055,0.000269,2]
[366824664,1750477843487,-330.6043211,0.000269,2]
[366824667,1750477846118,-2149.2,0.000269,2]
[366824668,1750477846133,-956.26549975,0.000269,2]
[366824669,1750478607017,159.18,0.00013699,2]
[366824672,1750478762289,-274.25841054,0.00020319,4]
[366824673,1750478765857,-159.18,0.00020187,2]
[366824674,1750478765881,-141.49685,0.00020319,4]
[366824675,1750478780972,-184.24473946,0.00020319,4]
[366824676,1750478780996,-18.74142153,0.00020451,2]
[366824677,1750478796965,-187.25857847,0.00020451,2]
[366824685,1750479032281,-600.0,0.00022167,4]
[366824686,1750479032291,-600.0,0.00022206,4]
[366824687,1750479032301,-206.0,0.00022276,2]
[366824688,1750479032316,-155.21,0.00023998,2]
[366824689,1750479032326,-206.0,0.00025178,6]
[366824690,1750479032336,-300.0,0.00025797,2]
[366824691,1750479032347,-1200.0,0.00025797,2]
[366824692,1750479032357,-158.10259963,0.00025798,2]
[366824693,1750479032367,-251.53,0.00025798,2]
[366824695,1750479032377,-301.84,0.00025798,2]
[366824697,1750479032387,-254.55,0.00025798,2]
[366824699,1750479032397,-301.45,0.00025798,2]
[366824700,1750479032407,-245.53,0.00025798,2]
[366824702,1750479032417,-247.94,0.00025799,2]
[366824704,1750479032426,-300.73,0.00025799,2]
[366824705,1750479032436,-247.59,0.00025799,2]
[366824706,1750479032446,-151.89,0.00025799,2]
[366824707,1750479032456,-245.85,0.00025799,2]
[366824708,1750479032466,-213.01422909,0.00025799,2]
[366824716,1750479038065,-90.41577091,0.00025799,2]
[366824717,1750479038076,-248.88,0.00025799,2]
[366824718,1750479038086,-108.50824791,0.00025799,2]
[366824719,1750479038098,-138.47175209,0.00025799,2]
[366824720,1750479038108,-112.50699297,0.00025799,2]
[366824731,1750479040510,-190.45300703,0.00025799,2]
[366824732,1750479040521,-75.91499303,0.00025799,2]
[366824789,1750479046208,-173.48500697,0.00025799,2]
[366824790,1750479046219,-250.46,0.00025799,2]
[366824791,1750479046229,-170.0,0.00025986,2]
[366824792,1750479046238,-443.35499303,0.00026,2]
[366824793,1750479094624,10000.0,0.000247,120]
[366824794,1750479114054,250.0,0.00015,2]
[366824796,1750479190978,600.0,0.0002,5]
[366824797,1750479192423,575.03647681,0.0002,5]
[366824798,1750479193731,162.39438394,0.0002,5]
[366824799,1750479193757,437.60561606,0.0002,5]
[366824800,1750479194916,600.0,0.0002,5]
[366824801,1750479195809,600.0,0.0002,5]
[366824802,1750479196976,600.0,0.0002,5]
[366824803,1750479198422,600.0,0.0002,5]